[Event "Early-Titled-Tuesday-Blitz-September-12-2023"]
[Site "Chess.com"]
[Date "2023.09.12"]
[Round "11"]
[White "sqmorr"]
[Black "javierfreilemartin"]
[Result "1-0"]
[WhiteElo "2255"]
[BlackElo "2310"]
[TimeControl "180+1"]
[EndTime "10:03:57 PDT"]
[Termination "sqmorr won by checkmate"]

1. d4 {[%clk 0:03:00.9]} 1... Nf6 {[%clk 0:02:48.9]} 2. c4 {[%clk 0:03:00.2]}
2... g6 {[%clk 0:02:40.8]} 3. Nc3 {[%clk 0:02:58.9]} 3... Bg7 {[%clk 0:02:37.7]}
4. e4 {[%clk 0:02:58.1]} 4... d6 {[%clk 0:02:37.7]} 5. Nf3 {[%clk 0:02:56.9]}
5... O-O {[%clk 0:02:37]} 6. Be2 {[%clk 0:02:56.1]} 6... Na6 {[%clk 0:02:37]} 7.
O-O {[%clk 0:02:53.8]} 7... e5 {[%clk 0:02:36.9]} 8. Be3 {[%clk 0:02:52]} 8...
Ng4 {[%clk 0:02:30]} 9. Bg5 {[%clk 0:02:51]} 9... Qe8 {[%clk 0:02:28.5]} 10. Re1
{[%clk 0:02:46.8]} 10... exd4 {[%clk 0:02:00.6]} 11. Nxd4 {[%clk 0:02:42.7]}
11... Qe5 {[%clk 0:02:00.2]} 12. Bxg4 {[%clk 0:02:38.6]} 12... Qxd4 {[%clk
0:01:47.6]} 13. Bxc8 {[%clk 0:02:37.2]} 13... Rfxc8 {[%clk 0:01:44.1]} 14. Qxd4
{[%clk 0:02:32.3]} 14... Bxd4 {[%clk 0:01:43.1]} 15. Rac1 {[%clk 0:02:31.1]}
15... Bxc3 {[%clk 0:01:39.1]} 16. Rxc3 {[%clk 0:02:29.4]} 16... Kg7 {[%clk
0:01:38.3]} 17. Be3 {[%clk 0:02:22.8]} 17... Re8 {[%clk 0:01:35]} 18. f3 {[%clk
0:02:21.3]} 18... Nb4 {[%clk 0:01:33.4]} 19. a3 {[%clk 0:02:17.7]} 19... Nc6
{[%clk 0:01:32.2]} 20. Kf2 {[%clk 0:02:13.8]} 20... a5 {[%clk 0:01:30.8]} 21. c5
{[%clk 0:02:11.9]} 21... dxc5 {[%clk 0:01:27.7]} 22. Rxc5 {[%clk 0:02:10.5]}
22... a4 {[%clk 0:01:27.8]} 23. Rb5 {[%clk 0:02:07.4]} 23... b6 {[%clk
0:01:25.9]} 24. Rc1 {[%clk 0:02:05.6]} 24... Re6 {[%clk 0:01:25.8]} 25. Rd5
{[%clk 0:02:03.4]} 25... Na5 {[%clk 0:01:23.1]} 26. Rd7 {[%clk 0:02:01.1]} 26...
c5 {[%clk 0:01:21.5]} 27. Rcd1 {[%clk 0:01:57.8]} 27... Nc4 {[%clk 0:01:16.3]}
28. Bc1 {[%clk 0:01:57]} 28... Rae8 {[%clk 0:01:10.7]} 29. Ra7 {[%clk
0:01:54.4]} 29... R8e7 {[%clk 0:01:10.4]} 30. Rxa4 {[%clk 0:01:51.3]} 30... b5
{[%clk 0:01:09.1]} 31. Ra8 {[%clk 0:01:49.7]} 31... f5 {[%clk 0:01:09]} 32. Rdd8
{[%clk 0:01:45]} 32... fxe4 {[%clk 0:01:08]} 33. Rg8+ {[%clk 0:01:43.5]} 33...
Kf6 {[%clk 0:01:07.7]} 34. Raf8+ {[%clk 0:01:41.7]} 34... Ke5 {[%clk 0:01:07.3]}
35. fxe4 {[%clk 0:01:36.7]} 35... Kxe4 {[%clk 0:01:04.4]} 36. Rf3 {[%clk
0:01:28.7]} 36... Ne5 {[%clk 0:00:56.3]} 37. Re3+ {[%clk 0:01:26.3]} 37... Kd4
{[%clk 0:00:55.9]} 38. Rd8+ {[%clk 0:01:24.1]} 38... Kc4 {[%clk 0:00:55.9]} 39.
Rc3# {[%clk 0:01:21.4]} 1-0

[Event "Early-Titled-Tuesday-Blitz-September-12-2023"]
[Site "Chess.com"]
[Date "2023.09.12"]
[Round "11"]
[White "Arystanner"]
[Black "Aradhya2000"]
[Result "1-0"]
[WhiteElo "2838"]
[BlackElo "2703"]
[TimeControl "180+1"]
[EndTime "10:03:58 PDT"]
[Termination "Arystanner won by resignation"]

1. d4 {[%clk 0:02:56.5]} 1... d5 {[%clk 0:02:59.8]} 2. c4 {[%clk 0:02:57.1]}
2... c6 {[%clk 0:03:00.1]} 3. Nf3 {[%clk 0:02:57.9]} 3... Nf6 {[%clk 0:03:00.6]}
4. e3 {[%clk 0:02:58.6]} 4... Bg4 {[%clk 0:02:59.2]} 5. Nc3 {[%clk 0:02:58.7]}
5... e6 {[%clk 0:02:59.2]} 6. h3 {[%clk 0:02:59.3]} 6... Bxf3 {[%clk 0:02:58.9]}
7. Qxf3 {[%clk 0:02:59.5]} 7... Bb4 {[%clk 0:02:58.7]} 8. Bd2 {[%clk 0:02:59.6]}
8... Nbd7 {[%clk 0:02:58.9]} 9. Bd3 {[%clk 0:02:59.4]} 9... O-O {[%clk
0:02:58.6]} 10. O-O {[%clk 0:02:57]} 10... Nc5 {[%clk 0:02:58.7]} 11. dxc5
{[%clk 0:02:44.9]} 11... dxc4 {[%clk 0:02:58.4]} 12. Bxc4 {[%clk 0:02:35.9]}
12... Qxd2 {[%clk 0:02:57.4]} 13. Ne4 {[%clk 0:02:36.6]} 13... Nxe4 {[%clk
0:02:54.2]} 14. Qxe4 {[%clk 0:02:37]} 14... Bxc5 {[%clk 0:02:54.5]} 15. Rfd1
{[%clk 0:02:31.2]} 15... Qb4 {[%clk 0:02:48.9]} 16. a3 {[%clk 0:02:29.1]} 16...
Qxb2 {[%clk 0:02:43.7]} 17. Rab1 {[%clk 0:02:28.7]} 17... Qxa3 {[%clk
0:02:41.4]} 18. Rxb7 {[%clk 0:02:28.8]} 18... Rad8 {[%clk 0:02:41.5]} 19. Rxd8
{[%clk 0:02:14.2]} 19... Rxd8 {[%clk 0:02:41.2]} 20. Rxf7 {[%clk 0:02:14.4]}
20... Kh8 {[%clk 0:01:59.9]} 21. g3 {[%clk 0:02:05.8]} 21... Qc1+ {[%clk
0:00:43.9]} 22. Kg2 {[%clk 0:02:04.7]} 22... a5 {[%clk 0:00:31.8]} 23. Bd3
{[%clk 0:01:54.9]} 23... Kg8 {[%clk 0:00:25.1]} 24. Qxe6 {[%clk 0:01:50.8]}
24... Rf8 {[%clk 0:00:14.4]} 25. Rf6+ {[%clk 0:01:49.7]} 25... Kh8 {[%clk
0:00:14.5]} 26. Rxf8+ {[%clk 0:01:47.6]} 26... Bxf8 {[%clk 0:00:15.4]} 27. Bc4
{[%clk 0:01:48.3]} 1-0

[Event "Early-Titled-Tuesday-Blitz-September-12-2023"]
[Site "Chess.com"]
[Date "2023.09.12"]
[Round "11"]
[White "MaxLeto"]
[Black "ShahMatKanal"]
[Result "0-1"]
[WhiteElo "2413"]
[BlackElo "2513"]
[TimeControl "180+1"]
[EndTime "10:04:12 PDT"]
[Termination "ShahMatKanal won on time"]

1. g4 {[%clk 0:03:00.9]} 1... h5 {[%clk 0:02:54.6]} 2. g5 {[%clk 0:02:59.7]}
2... h4 {[%clk 0:02:52.7]} 3. d4 {[%clk 0:02:59.9]} 3... g6 {[%clk 0:02:52]} 4.
Bg2 {[%clk 0:02:58.5]} 4... d6 {[%clk 0:02:48]} 5. h3 {[%clk 0:02:58.6]} 5...
Bg7 {[%clk 0:02:47.8]} 6. c4 {[%clk 0:02:58.8]} 6... c6 {[%clk 0:02:47.5]} 7.
Nc3 {[%clk 0:02:59.3]} 7... Nd7 {[%clk 0:02:43]} 8. e4 {[%clk 0:02:59.7]} 8...
Qb6 {[%clk 0:02:33]} 9. Nge2 {[%clk 0:02:59.5]} 9... e6 {[%clk 0:02:26.7]} 10.
O-O {[%clk 0:02:15.4]} 10... Ne7 {[%clk 0:02:25.3]} 11. a3 {[%clk 0:01:51.5]}
11... a5 {[%clk 0:02:25.1]} 12. Be3 {[%clk 0:01:46.3]} 12... Qa6 {[%clk
0:02:25.1]} 13. b3 {[%clk 0:01:41.3]} 13... b5 {[%clk 0:02:15.7]} 14. cxb5
{[%clk 0:01:31]} 14... cxb5 {[%clk 0:02:16.6]} 15. Qd3 {[%clk 0:01:31.6]} 15...
b4 {[%clk 0:02:08.9]} 16. Nb5 {[%clk 0:01:28.6]} 16... O-O {[%clk 0:02:01.7]}
17. axb4 {[%clk 0:01:26.4]} 17... Nc6 {[%clk 0:01:48.6]} 18. Qc4 {[%clk
0:00:53.2]} 18... Nxb4 {[%clk 0:01:41.5]} 19. Bd2 {[%clk 0:00:30.1]} 19... Nb6
{[%clk 0:01:31.1]} 20. Qxb4 {[%clk 0:00:05.9]} 20... axb4 {[%clk 0:01:31.4]} 21.
Rxa6 {[%clk 0:00:06.8]} 21... Bxa6 {[%clk 0:01:31.4]} 22. Nc7 {[%clk 0:00:01.6]}
22... Bxe2 {[%clk 0:01:31.4]} 23. Re1 {[%clk 0:00:01.3]} 23... Rac8 {[%clk
0:01:29.7]} 0-1

[Event "Early-Titled-Tuesday-Blitz-September-12-2023"]
[Site "Chess.com"]
[Date "2023.09.12"]
[Round "11"]
[White "ljuks68"]
[Black "kidagent"]
[Result "1-0"]
[WhiteElo "2434"]
[BlackElo "2232"]
[TimeControl "180+1"]
[EndTime "10:04:24 PDT"]
[Termination "ljuks68 won by resignation"]

1. e4 {[%clk 0:02:54.6]} 1... c5 {[%clk 0:02:51.2]} 2. Nf3 {[%clk 0:02:52.5]}
2... d6 {[%clk 0:02:51.7]} 3. d4 {[%clk 0:02:52.8]} 3... cxd4 {[%clk 0:02:52.6]}
4. Nxd4 {[%clk 0:02:53.2]} 4... Nf6 {[%clk 0:02:53]} 5. Nc3 {[%clk 0:02:53.5]}
5... a6 {[%clk 0:02:53.5]} 6. Bg5 {[%clk 0:02:53.3]} 6... e6 {[%clk 0:02:54.1]}
7. f4 {[%clk 0:02:53.6]} 7... b5 {[%clk 0:02:54.8]} 8. e5 {[%clk 0:02:51.2]}
8... dxe5 {[%clk 0:02:55.4]} 9. fxe5 {[%clk 0:02:51.4]} 9... Qc7 {[%clk
0:02:56.1]} 10. Qe2 {[%clk 0:02:51.4]} 10... Nfd7 {[%clk 0:02:55.6]} 11. O-O-O
{[%clk 0:02:51]} 11... Nc6 {[%clk 0:02:56.1]} 12. Nxc6 {[%clk 0:02:46.1]} 12...
Qxc6 {[%clk 0:02:57]} 13. Qh5 {[%clk 0:02:35.4]} 13... Bb7 {[%clk 0:02:50.8]}
14. Be2 {[%clk 0:02:26.4]} 14... g6 {[%clk 0:02:48.4]} 15. Qh4 {[%clk 0:02:17]}
15... h6 {[%clk 0:02:42.2]} 16. Bf3 {[%clk 0:02:02.6]} 16... Qc7 {[%clk
0:02:33.9]} 17. Bxb7 {[%clk 0:02:00.7]} 17... Qxb7 {[%clk 0:02:33.5]} 18. Rhf1
{[%clk 0:01:04.3]} 18... Qxg2 {[%clk 0:02:05.2]} 19. Bf6 {[%clk 0:00:41.9]}
19... Rg8 {[%clk 0:01:55.8]} 20. Ne4 {[%clk 0:00:33.6]} 20... g5 {[%clk
0:01:47.9]} 21. Qe1 {[%clk 0:00:33.4]} 21... Rc8 {[%clk 0:01:36.6]} 22. Rf2
{[%clk 0:00:32.9]} 22... Qg4 {[%clk 0:01:28.4]} 23. Rfd2 {[%clk 0:00:32.3]}
23... Bb4 {[%clk 0:01:14.4]} 24. Rxd7 {[%clk 0:00:29]} 1-0

[Event "Early-Titled-Tuesday-Blitz-September-12-2023"]
[Site "Chess.com"]
[Date "2023.09.12"]
[Round "11"]
[White "sjoerd893"]
[Black "profedechess93"]
[Result "0-1"]
[WhiteElo "2475"]
[BlackElo "2647"]
[TimeControl "180+1"]
[EndTime "10:04:29 PDT"]
[Termination "profedechess93 won by resignation"]

1. e4 {[%clk 0:03:00.9]} 1... e6 {[%clk 0:03:00.2]} 2. d4 {[%clk 0:03:00]} 2...
d5 {[%clk 0:03:01.1]} 3. Nc3 {[%clk 0:03:00]} 3... Nf6 {[%clk 0:03:00.9]} 4. Bg5
{[%clk 0:02:59]} 4... Be7 {[%clk 0:03:00.7]} 5. e5 {[%clk 0:02:58.7]} 5... Nfd7
{[%clk 0:03:00.7]} 6. h4 {[%clk 0:02:59.4]} 6... Nc6 {[%clk 0:03:00.8]} 7. Nb5
{[%clk 0:02:49.7]} 7... a6 {[%clk 0:02:51.1]} 8. Nc3 {[%clk 0:02:38.1]} 8... h6
{[%clk 0:02:44.8]} 9. Bxe7 {[%clk 0:02:37.7]} 9... Qxe7 {[%clk 0:02:44.5]} 10.
Qg4 {[%clk 0:02:37.7]} 10... O-O {[%clk 0:02:43.2]} 11. O-O-O {[%clk 0:02:34.3]}
11... f5 {[%clk 0:02:41.2]} 12. exf6 {[%clk 0:02:33.6]} 12... Nxf6 {[%clk
0:02:40.8]} 13. Qg3 {[%clk 0:02:32.3]} 13... b5 {[%clk 0:02:26.5]} 14. Nf3
{[%clk 0:02:25.5]} 14... b4 {[%clk 0:02:22.6]} 15. Ne2 {[%clk 0:02:23.8]} 15...
Ne4 {[%clk 0:02:22.7]} 16. Qg6 {[%clk 0:02:19.2]} 16... Nxf2 {[%clk 0:02:16.5]}
17. Rh2 {[%clk 0:02:06.8]} 17... Nxd1 {[%clk 0:02:06.4]} 18. Kxd1 {[%clk
0:02:07.7]} 18... Rf6 {[%clk 0:02:02.7]} 19. Qg3 {[%clk 0:01:59.1]} 19... Qd6
{[%clk 0:01:55]} 20. Rh3 {[%clk 0:01:19.2]} 20... Bd7 {[%clk 0:01:50]} 21. Nc1
{[%clk 0:00:51.5]} 21... Be8 {[%clk 0:01:38]} 22. Nd3 {[%clk 0:00:44.1]} 22...
Bh5 {[%clk 0:01:37.1]} 23. Qf2 {[%clk 0:00:41.2]} 23... Bxf3+ {[%clk 0:01:24.9]}
24. gxf3 {[%clk 0:00:40.5]} 24... e5 {[%clk 0:01:24.8]} 25. dxe5 {[%clk
0:00:35.3]} 25... Nxe5 {[%clk 0:01:25.7]} 26. Rg3 {[%clk 0:00:35.5]} 26... Nc4
{[%clk 0:01:09.6]} 27. b3 {[%clk 0:00:28]} 27... Ne3+ {[%clk 0:01:05.8]} 0-1

[Event "Early-Titled-Tuesday-Blitz-September-12-2023"]
[Site "Chess.com"]
[Date "2023.09.12"]
[Round "11"]
[White "MrTattaglia"]
[Black "WaybackBoy"]
[Result "1-0"]
[WhiteElo "2898"]
[BlackElo "2700"]
[TimeControl "180+1"]
[EndTime "10:04:34 PDT"]
[Termination "MrTattaglia won by resignation"]

1. e4 {[%clk 0:03:00.9]} 1... c5 {[%clk 0:02:59.9]} 2. Nf3 {[%clk 0:03:01.4]}
2... d6 {[%clk 0:02:59.9]} 3. d4 {[%clk 0:03:01.9]} 3... cxd4 {[%clk 0:03:00.8]}
4. Nxd4 {[%clk 0:03:02.5]} 4... Nf6 {[%clk 0:03:01.5]} 5. Nc3 {[%clk 0:03:03]}
5... Nc6 {[%clk 0:03:02.2]} 6. Bg5 {[%clk 0:03:03.1]} 6... e6 {[%clk 0:03:02.6]}
7. Qd2 {[%clk 0:03:03.4]} 7... a6 {[%clk 0:03:03.2]} 8. O-O-O {[%clk 0:03:03.9]}
8... Bd7 {[%clk 0:03:03.9]} 9. f4 {[%clk 0:03:03.8]} 9... b5 {[%clk 0:03:03.8]}
10. f5 {[%clk 0:03:04]} 10... b4 {[%clk 0:03:01.3]} 11. fxe6 {[%clk 0:03:03.5]}
11... fxe6 {[%clk 0:02:58]} 12. Nxc6 {[%clk 0:03:00.3]} 12... Bxc6 {[%clk
0:02:55.6]} 13. e5 {[%clk 0:03:00.6]} 13... dxe5 {[%clk 0:02:43.2]} 14. Qe2
{[%clk 0:02:55.5]} 14... Qc7 {[%clk 0:02:35.7]} 15. Qc4 {[%clk 0:02:42]} 15...
bxc3 {[%clk 0:02:22.5]} 16. Qxe6+ {[%clk 0:02:41.6]} 16... Be7 {[%clk
0:02:23.1]} 17. Bxf6 {[%clk 0:02:26.5]} 17... cxb2+ {[%clk 0:02:10.3]} 18. Kb1
{[%clk 0:02:24]} 18... gxf6 {[%clk 0:02:05.1]} 19. Bc4 {[%clk 0:02:08.3]} 19...
Rf8 {[%clk 0:01:51.9]} 20. Qg4 {[%clk 0:02:07.5]} 20... Bd6 {[%clk 0:01:16.2]}
21. Qe6+ {[%clk 0:01:31.3]} 21... Be7 {[%clk 0:01:03.4]} 22. Be2 {[%clk
0:01:30.4]} 22... Bd7 {[%clk 0:00:57.8]} 23. Bh5+ {[%clk 0:01:14.4]} 23... Kd8
{[%clk 0:00:58.4]} 24. Rxd7+ {[%clk 0:00:44.1]} 24... Qxd7 {[%clk 0:00:58.7]}
25. Rd1 {[%clk 0:00:44.5]} 25... Qxd1+ {[%clk 0:00:50]} 26. Bxd1 {[%clk
0:00:45.4]} 26... Ra7 {[%clk 0:00:42.1]} 27. Bg4 {[%clk 0:00:41.9]} 27... Rc7
{[%clk 0:00:41.3]} 28. Qd5+ {[%clk 0:00:41.1]} 28... Ke8 {[%clk 0:00:41.2]} 29.
Bh5+ {[%clk 0:00:41.1]} 1-0

[Event "Early-Titled-Tuesday-Blitz-September-12-2023"]
[Site "Chess.com"]
[Date "2023.09.12"]
[Round "11"]
[White "viktorskliarov"]
[Black "kleopl"]
[Result "1-0"]
[WhiteElo "2665"]
[BlackElo "2537"]
[TimeControl "180+1"]
[EndTime "10:04:44 PDT"]
[Termination "viktorskliarov won by resignation"]

1. e4 {[%clk 0:03:00.9]} 1... c5 {[%clk 0:03:00.2]} 2. Nf3 {[%clk 0:02:58.7]}
2... d6 {[%clk 0:03:00.8]} 3. d4 {[%clk 0:02:58.4]} 3... cxd4 {[%clk 0:03:01.7]}
4. Qxd4 {[%clk 0:02:58.8]} 4... Nc6 {[%clk 0:03:00.6]} 5. Bb5 {[%clk 0:02:58.5]}
5... Bd7 {[%clk 0:03:00.6]} 6. Bxc6 {[%clk 0:02:59.2]} 6... Bxc6 {[%clk
0:02:59.6]} 7. Nc3 {[%clk 0:02:59.9]} 7... Nf6 {[%clk 0:02:58.4]} 8. Bg5 {[%clk
0:03:00.5]} 8... e6 {[%clk 0:02:58.7]} 9. O-O-O {[%clk 0:03:00.8]} 9... Be7
{[%clk 0:02:56.5]} 10. Rhe1 {[%clk 0:03:00.8]} 10... h6 {[%clk 0:02:52.5]} 11.
Bh4 {[%clk 0:02:59]} 11... O-O {[%clk 0:02:47]} 12. Kb1 {[%clk 0:02:58.6]} 12...
Qa5 {[%clk 0:02:44.3]} 13. Qd2 {[%clk 0:02:52.3]} 13... Qa6 {[%clk 0:02:12.2]}
14. Nd4 {[%clk 0:02:49.2]} 14... Rfc8 {[%clk 0:02:09.6]} 15. f3 {[%clk
0:02:47.3]} 15... b5 {[%clk 0:02:08.3]} 16. Bf2 {[%clk 0:02:46]} 16... b4 {[%clk
0:02:05.6]} 17. Nce2 {[%clk 0:02:46]} 17... Rab8 {[%clk 0:02:02.9]} 18. g4
{[%clk 0:02:43.3]} 18... Nd7 {[%clk 0:02:01]} 19. h4 {[%clk 0:02:38]} 19... Ne5
{[%clk 0:01:59]} 20. b3 {[%clk 0:02:37.7]} 20... Bb5 {[%clk 0:01:55.5]} 21. g5
{[%clk 0:02:22.2]} 21... hxg5 {[%clk 0:01:38.6]} 22. hxg5 {[%clk 0:02:21.3]}
22... Bxe2 {[%clk 0:01:39.3]} 23. Rxe2 {[%clk 0:02:18.5]} 23... Rc3 {[%clk
0:01:39.3]} 24. f4 {[%clk 0:02:10.7]} 24... Nf3 {[%clk 0:01:38.6]} 25. Nxf3
{[%clk 0:02:08.3]} 25... Rxf3 {[%clk 0:01:39.5]} 26. Rh1 {[%clk 0:01:57.6]}
26... Rc8 {[%clk 0:01:28.7]} 27. Be1 {[%clk 0:01:32.7]} 27... f5 {[%clk
0:00:43]} 28. g6 {[%clk 0:01:28.2]} 28... Bf6 {[%clk 0:00:33.8]} 29. e5 {[%clk
0:01:09.8]} 29... dxe5 {[%clk 0:00:32.4]} 30. Reh2 {[%clk 0:01:06.8]} 30... Kf8
{[%clk 0:00:22.9]} 31. Qd7 {[%clk 0:01:05.6]} 1-0

[Event "Early-Titled-Tuesday-Blitz-September-12-2023"]
[Site "Chess.com"]
[Date "2023.09.12"]
[Round "11"]
[White "Byniolus"]
[Black "GlavkonVVS"]
[Result "1-0"]
[WhiteElo "2778"]
[BlackElo "2577"]
[TimeControl "180+1"]
[EndTime "10:04:47 PDT"]
[Termination "Byniolus won by checkmate"]

1. e4 {[%clk 0:03:00.9]} 1... c5 {[%clk 0:02:02.1]} 2. b4 {[%clk 0:02:59.3]}
2... cxb4 {[%clk 0:02:02]} 3. a3 {[%clk 0:02:59.2]} 3... e6 {[%clk 0:02:02.5]}
4. axb4 {[%clk 0:02:59.2]} 4... Bxb4 {[%clk 0:02:02.9]} 5. c3 {[%clk 0:02:56.4]}
5... Ba5 {[%clk 0:02:03.3]} 6. Ba3 {[%clk 0:02:54]} 6... Nc6 {[%clk 0:02:01.4]}
7. Nf3 {[%clk 0:02:51.1]} 7... d5 {[%clk 0:02:01.1]} 8. e5 {[%clk 0:02:47.5]}
8... Nge7 {[%clk 0:02:00.7]} 9. d4 {[%clk 0:02:46.8]} 9... a6 {[%clk 0:01:50]}
10. Bd3 {[%clk 0:02:43.7]} 10... b5 {[%clk 0:01:47.6]} 11. O-O {[%clk
0:02:40.4]} 11... b4 {[%clk 0:01:46.6]} 12. cxb4 {[%clk 0:02:38.1]} 12... Bxb4
{[%clk 0:01:47]} 13. Bc1 {[%clk 0:02:34.3]} 13... Nf5 {[%clk 0:01:40.8]} 14.
Bxf5 {[%clk 0:02:18.4]} 14... exf5 {[%clk 0:01:40.6]} 15. Ba3 {[%clk 0:02:16.3]}
15... Bxa3 {[%clk 0:01:31.7]} 16. Rxa3 {[%clk 0:02:14.9]} 16... O-O {[%clk
0:01:32.6]} 17. Nc3 {[%clk 0:02:11.2]} 17... Be6 {[%clk 0:01:29.9]} 18. Qa1
{[%clk 0:02:11.2]} 18... a5 {[%clk 0:01:28.4]} 19. Rc1 {[%clk 0:02:11]} 19...
Nb4 {[%clk 0:01:26.6]} 20. Nb5 {[%clk 0:02:05.5]} 20... Qb6 {[%clk 0:01:16.5]}
21. Nd6 {[%clk 0:02:00.6]} 21... f4 {[%clk 0:01:10.2]} 22. h3 {[%clk 0:01:57.3]}
22... h6 {[%clk 0:01:09.8]} 23. Rc5 {[%clk 0:01:51.9]} 23... g5 {[%clk 0:00:42]}
24. Qc1 {[%clk 0:01:40.7]} 24... Ra6 {[%clk 0:00:31.8]} 25. h4 {[%clk
0:01:37.2]} 25... g4 {[%clk 0:00:26.6]} 26. Qxf4 {[%clk 0:01:37.5]} 26... gxf3
{[%clk 0:00:16.6]} 27. Rxf3 {[%clk 0:01:38.4]} 27... Kh7 {[%clk 0:00:13.4]} 28.
Rb5 {[%clk 0:01:19.4]} 28... Qd8 {[%clk 0:00:12.5]} 29. Rb7 {[%clk 0:01:19.4]}
29... Rb6 {[%clk 0:00:08]} 30. Nxf7 {[%clk 0:01:08.6]} 30... Rxb7 {[%clk
0:00:06.7]} 31. Qxh6+ {[%clk 0:01:08.8]} 31... Kg8 {[%clk 0:00:07.2]} 32. Qg6#
{[%clk 0:01:08.3]} 1-0

[Event "Early-Titled-Tuesday-Blitz-September-12-2023"]
[Site "Chess.com"]
[Date "2023.09.12"]
[Round "11"]
[White "Artemiki"]
[Black "charlescandycampbell"]
[Result "1-0"]
[WhiteElo "2185"]
[BlackElo "2280"]
[TimeControl "180+1"]
[EndTime "10:04:50 PDT"]
[Termination "Artemiki won by resignation"]

1. e4 {[%clk 0:03:00.9]} 1... c6 {[%clk 0:02:59.3]} 2. d4 {[%clk 0:03:00.5]}
2... d5 {[%clk 0:03:00.2]} 3. e5 {[%clk 0:03:01.2]} 3... Bf5 {[%clk 0:03:00.2]}
4. h4 {[%clk 0:03:01.7]} 4... h5 {[%clk 0:03:00.3]} 5. Bd3 {[%clk 0:03:01.9]}
5... Bxd3 {[%clk 0:03:00.5]} 6. Qxd3 {[%clk 0:03:02.8]} 6... e6 {[%clk
0:03:01.2]} 7. Bg5 {[%clk 0:03:03.4]} 7... Be7 {[%clk 0:03:01.5]} 8. Nf3 {[%clk
0:03:03.7]} 8... Nh6 {[%clk 0:03:01.2]} 9. O-O {[%clk 0:03:03]} 9... Nf5 {[%clk
0:03:01.4]} 10. g3 {[%clk 0:03:00.2]} 10... Nd7 {[%clk 0:03:00.6]} 11. Nc3
{[%clk 0:02:56.4]} 11... a6 {[%clk 0:03:00.3]} 12. Nd1 {[%clk 0:02:56.4]} 12...
c5 {[%clk 0:02:52.7]} 13. c3 {[%clk 0:02:55.4]} 13... c4 {[%clk 0:02:52.2]} 14.
Qc2 {[%clk 0:02:54.5]} 14... b5 {[%clk 0:02:52.7]} 15. Ne3 {[%clk 0:02:54]}
15... g6 {[%clk 0:02:53.2]} 16. Nxf5 {[%clk 0:02:49.2]} 16... exf5 {[%clk
0:02:54.1]} 17. e6 {[%clk 0:02:42.7]} 17... fxe6 {[%clk 0:02:50]} 18. Rfe1
{[%clk 0:02:42.3]} 18... Kf7 {[%clk 0:02:40.1]} 19. Bxe7 {[%clk 0:02:38.7]}
19... Qxe7 {[%clk 0:02:40]} 20. Ng5+ {[%clk 0:02:38.6]} 20... Kf6 {[%clk
0:02:35.6]} 21. Rxe6+ {[%clk 0:02:36.9]} 21... Qxe6 {[%clk 0:02:36.5]} 22. Nxe6
{[%clk 0:02:37.3]} 22... Kxe6 {[%clk 0:02:37.4]} 23. Re1+ {[%clk 0:02:37.3]}
23... Kf7 {[%clk 0:02:37]} 24. Qd1 {[%clk 0:02:31.3]} 24... Rhd8 {[%clk
0:02:36.6]} 25. Qf3 {[%clk 0:02:30.3]} 25... Nf6 {[%clk 0:02:36.5]} 26. Qf4
{[%clk 0:02:30.7]} 26... Rac8 {[%clk 0:02:35.3]} 27. Re5 {[%clk 0:02:17.4]}
27... Rd7 {[%clk 0:02:31.7]} 28. f3 {[%clk 0:02:13.5]} 28... a5 {[%clk
0:02:25.6]} 29. Qh6 {[%clk 0:02:02]} 29... Rc6 {[%clk 0:02:17.4]} 30. g4 {[%clk
0:01:52]} 30... fxg4 {[%clk 0:02:16.9]} 31. fxg4 {[%clk 0:01:38.7]} 31... hxg4
{[%clk 0:02:17.8]} 32. Rg5 {[%clk 0:01:37.7]} 32... Ne4 {[%clk 0:01:53.5]} 33.
Qh7+ {[%clk 0:01:23.7]} 33... Ke8 {[%clk 0:01:53.4]} 34. Qg8+ {[%clk 0:01:20.6]}
34... Ke7 {[%clk 0:01:53.6]} 35. Re5+ {[%clk 0:01:03]} 35... Kd6 {[%clk
0:01:31.2]} 36. Qxd5+ {[%clk 0:00:56.4]} 36... Kc7 {[%clk 0:01:29.3]} 37. Qxe4
{[%clk 0:00:56.5]} 37... b4 {[%clk 0:01:27.9]} 38. Re7 {[%clk 0:00:55.9]} 38...
Rd6 {[%clk 0:01:18.5]} 39. Rxd7+ {[%clk 0:00:55.3]} 39... Kxd7 {[%clk
0:01:19.1]} 40. Qxg4+ {[%clk 0:00:54.6]} 40... Kc6 {[%clk 0:01:19.2]} 41. Qc8+
{[%clk 0:00:53.6]} 41... Kd5 {[%clk 0:01:17.6]} 42. Qc5+ {[%clk 0:00:52.7]}
42... Ke6 {[%clk 0:01:18.2]} 43. Qxc4+ {[%clk 0:00:52.7]} 43... Kd7 {[%clk
0:01:17.8]} 44. Qb5+ {[%clk 0:00:52.3]} 44... Ke6 {[%clk 0:01:17.7]} 45. Qxa5
{[%clk 0:00:51.1]} 45... bxc3 {[%clk 0:01:17.5]} 46. bxc3 {[%clk 0:00:50.8]}
46... Rd5 {[%clk 0:01:17.6]} 47. Qxd5+ {[%clk 0:00:49.2]} 47... Kxd5 {[%clk
0:01:17.8]} 48. Kf2 {[%clk 0:00:49.2]} 48... Kc4 {[%clk 0:01:17.9]} 49. a4
{[%clk 0:00:49.5]} 49... Kd5 {[%clk 0:01:16.9]} 50. Kf3 {[%clk 0:00:49.2]} 50...
Kc4 {[%clk 0:01:17.4]} 51. Kg4 {[%clk 0:00:49]} 51... Kxc3 {[%clk 0:01:17.7]}
52. a5 {[%clk 0:00:49]} 52... Kxd4 {[%clk 0:01:18.6]} 53. a6 {[%clk 0:00:49.6]}
53... Kc5 {[%clk 0:01:19.5]} 54. a7 {[%clk 0:00:50.2]} 54... Kb6 {[%clk
0:01:20.4]} 55. a8=Q {[%clk 0:00:50.7]} 55... Kc7 {[%clk 0:01:20.1]} 56. Qe8
{[%clk 0:00:50.5]} 1-0